Workbook

Sheet Wilhelm0904
A1: Breeding Cycle Analyser Wilhelm: Deterministic simulator for gain prediction for a program with balance among grandparents, but among and within family selection. | R1: Meaning of cell font and colour:
B2: TroubleSolver | C2: Get started | D2: Aim | E2: How to run | F2: Swedish pine plans | G2: Breeding plan | H2: Math explained | I2: Assumptions | J2: Initial settings | K2: Results | L2: Costs and time | M2: Correlation | N2: Literature | O2: About | P2: 090501, last edit Dag | R2: Input | S2: Results | T2: Not relevant for Wilhelm but working
A4: Genetic parameters | F4: Diversity loss, rotation, BP size
B5: Variance components | C5: Standard deviations | D5: ruCVAm= | E5: 11 | F5: Diversity loss per cycle | G5: 0.01
A6: sA2= | B6: 1 | C6: =SQRT(B6) -> 1 | D6: sP2=sA2+sD2+sE2= | E6: =B6+B7+B8 -> 8 | F6: Weight for group coancestry= | G6: 0
A7: sD2= | B7: 0.25 | C7: =SQRT(B7) -> 0.5 | D7: h2= | E7: =B6/E6 -> 0.125 | F7: Rotation age= | G7: 70
A8: sE2= | B8: 6.75 | C8: =SQRT(B8) -> 2.598076211 | D8: H2= | E8: =(B6+B7)/E6 -> 0.15625 | F8: BP size | G8: =D17*G9 -> 300
F9: Number of grandparents | G9: 50
C10: Constraint: annual budget per grandparent | D10: 50
C11: ANNUAL budget for the whole population | D11: =G9*D10 -> 2500
C12: Total budget for a cycle and whole population | D12: =D11*D28 -> 50000
C13: Total budget per cycle and grandparent | D13: =D10*D28 -> 1000
C14: plants in field trials | D14: =G9*D20*D17/2 -> 30000
B16: Optimization box | C16: Parameters | D16: Values | E16: number per fam with SPM
C17: Parents selected per grandparent (PGP) = | D17: 6 | E17: =D17*2 -> 12
C18: Proportion of plants in tests which become parents | D18: =G8/D14 -> 0.01
C19: Selection intensity AMONG = | D19: =SelBurr(2,(D17*2)) -> 1.370824051
C20: Offspring family size (m) = | D20: =4*($D$13-D22)/(D17*2)-2*$D$24 -> 200
C21: Selection intensity WITHIN = | D21: =SelBurr((D17*2),D20) -> 1.965753355
C22: Fixed cost (Cfixed)= | D22: 100
C23: Cost per test plant (Cm)= | D23: 1
C24: Cost per parent (Cp)= | D24: 50
C25: Total cost per cycle and grandparent = | D25: =D22+(D17*2*(2*D24+D20))/4 -> 1000
C26: Time not used for testing = | D26: 5
C27: Testing time= | D27: 15
C28: Cycle duration= | D28: =D26+D27 -> 20
C29: sf | D29: =(0.25*(1+1/$D$20)*SQRT($B$6)*(SQRT(1-1/($D$17*2)*$B$6)))/(SQRT(0.25*$B$6*(1+1/$D$20)+0.25*$B$7+(0.75*$B$7+$B$8)/$D$20)) -> 0.4075203921
C30: sw | D30: =(0.5*(1-1/$D$20)*$B$6)/(SQRT((0.5*$B$6+0.75*$B$7)*(1-1/$D$20)+$B$8)) -> 0.1824651721
C31: J-M correlation function | D31: 6
C32: function name | D32: =rname(D31) -> Jansson 2003 south&mid Sw
C33: rjm = | D33: =rr(D31,D27/$G$7) -> 0.5455687129
C34: Genetic gain among (%)= | D34: =$D$33*$D$19*$D$29*E5 -> 3.35253409
C35: Genetic gain within (%)= | D35: =$D$33*$D$21*$D$30*E5 -> 2.152539593
A36: Result | C36: Total genetic gain per cycle (%)= | D36: =D35+D34 -> 5.505073683
C37: Gain/(cost per grandparent)= | D37: =D36/D13 -> 0.005505073683
C38: Gain/time= | D38: =D36/D28 -> 0.2752536842 | F38: Facilititate analyses with Macros
C39: Annual group merit progress= | D39: =(D36-G5*G6)/D28 -> 0.2752536842
A42: The below area is for copying the results
A43: Constraint: annual budget per grandparent | B43: ANNUAL budget for the whole population | C43: Total budget for a cycle and whole population | D43: Total budget per cycle and grandparent | E43: plants in field trials | G43: Parameters | H43: Candidate parents selected per grandparent (p) = | I43: Selection intensity AMONG = | J43: Offspring family size (m) = | K43: Selection intensity WITHIN = | L43: Initiation cost (CIN)= | M43: Cost per test plant (Cm)= | N43: Cost per parent (Cp)= | O43: Total cost per cycle and grandparent = | P43: Time not used for testing = | Q43: Testing time= | R43: Cycle duration= | S43: ramong | T43: rwithin | U43: J-M correlation function | V43: function name | W43: rjm = | X43: Genetic gain among (%)= | Y43: Genetic gain within (%)= | Z43: Total genetic gain per cycle (%)= | AA43: Gain/(cost per grandparent)= | AB43: Gain/time= | AC43: Group merit/time= | AD43: Diversity loss per cycle | AE43: Weight for group coancestry= | AF43: Rotation age= | AG43: BP size | AH43: Number of grandparents

Sheet Mira09
A1: Breeding Cycle Analyser Mira: Deterministic simulator for gain prediction from a program with balance among grandparents, but parental and within family selection. | Q1: Meaning of cell font and colour: | S1: A presentation of Mira is on: http://daglindgren.upsc.se/Foradlrevision07/ToDelp3BreedingPrinc/RetrospectiveBalanceDagAfterPresentationMay08.ppt
B2: TroubleSolver | C2: Specific aim | D2: General aim | E2: Get started | F2: Specific difficulties | G2: Breeding plan | H2: Assumptions | I2: Initial settings | J2: Results | K2: Costs | L2: Timing | M2: How to run | N2: Correlation | O2: Literature | P2: About | Q2: Input | R2: Results | S2: Last edit DL 090408
A4: Genetic parameters in BP | F4: Diversity loss, rotation, BP size
B5: Variance components | C5: Standard deviations | D5: CVAm= | E5: 14 | F5: Rotation age= | G5: 60
A6: sA2= | B6: 1 | C6: =SQRT(B6) -> 1 | D6: sP2=sA2+sD2+sE2= | E6: =B6+B7+B8 -> 10 | F6: BP size | G6: =2*D16*12.5 -> 100
A7: sD2= | B7: =B6*0.25 -> 0.25 | C7: =SQRT(B7) -> 0.5 | D7: h2= | E7: =B6/E6 -> 0.1 | F7: Number of founders | G7: 50
A8: sE2= | B8: 8.75 | C8: =SQRT(B8) -> 2.958039892 | D8: H2= | E8: =(B6+B7)/E6 -> 0.125
C10: Constraint: annual budget per founder | D10: 20 | E10: Insert annual budget
C11: ANNUAL budget for the whole BP | D11: =G7*D10 -> 1000
C12: Total budget for a cycle and whole BP | D12: =D11*D27 -> 18000
C13: Total budget per cycle and grandparent | D13: =D10*D27 -> 360
B15: Optimization box | C15: Parameters | D15: Values
C16: Candidate parents selected per family (p) = | D16: 4 | E16: This is the main cell to change while optimising
C17: Selection intensity AMONG = | D17: =SelBurr(2,D16) -> 0.6725531461
C18: Offspring family size (m) = | D18: =4*$D$13/$D$16-2*$D$22 -> 310
C19: Selection intensity WITHIN = | D19: =SelBurr(D16,D18) -> 2.529912316
C20: Initiation cost (CIN)= | D20: 0 | E20: Suggest to keep at 0
C21: Cost per test plant (CP)= | D21: 1 | E21: Suggest to keep at 1
C22: Cost per parent (CG)= | D22: 25 | E22: Put a relelvant value for your program
C23: Total cost per cycle and founder= | D23: =D20+(D16*(2*D22+D18))/4 -> 360
C24: Time before = | D24: 6 | E24: Put a relevant value for your program
C25: Testing time= | D25: 12 | E25: Put a relevant value for your program
C26: Time after= | D26: 0 | E26: Put a relevant value for your program
C27: Cycle duration= | D27: =D24+D25+D26 -> 18
C28: rAmong | D28: =(0.5*(1+1/$D$18)*SQRT($B$6)*(SQRT(1-1/$D$16)))/(SQRT(0.25*$B$6*(1+1/$D$18)+0.25*$B$7+(0.75*$B$7+$B$8)/$D$18)) -> 0.7426757583
C29: rWithin | D29: =(0.7071*(1-1/$D$18)*SQRT($B$6))/(SQRT((0.5*$B$6+0.75*$B$7)*(1-1/$D$18)+$B$8)) -> 0.2294563994
C30: J-M correlation function | D30: 1 | E30: Choose a relevant function for your program
C31: function name | D31: =rname(D30) -> Lambeth 2001
C32: rY (or R)= | D32: =rr(D30,D25/$G$5) -> 0.7661515414
C33: Genetic gain among (%)= | D33: =$D$32*$D$17*$D$28*E5/2 -> 2.67878943
C34: Genetic gain within (%)= | D34: =$D$32*$D$19*$D$29*0.7071*E5 -> 4.402802418
A35: Result | C35: Total genetic gain per cycle (%)= | D35: =D34+D33 -> 7.081591848 | E35: Can be maximized as a function of budget, parents selected and cost per parent (large fat fonts)
C36: Gain/(cost per grandparent)= | D36: =D35/D13 -> 0.01967108847
C37: Gain/time= | D37: =D35/D27 -> 0.3934217693
E38: Facilititate analyses with Macros
A41: The area below is for copying results
A42: Constraint: annual budget per founder | B42: ANNUAL budget for the whole BP | C42: Total budget for a cycle and whole BP | D42: Total budget per cycle and grandparent | F42: Parameters | G42: Candidate parents selected per family (p) = | H42: Selection intensity AMONG = | I42: Offspring family size (m) = | J42: Selection intensity WITHIN = | K42: Initiation cost (CIN)= | L42: Cost per test plant (CP)= | M42: Cost per parent (CG)= | N42: Total cost per cycle and founder= | O42: Time before = | P42: Testing time= | Q42: Time after= | R42: Cycle duration= | S42: ramong | T42: rwithin | U42: J-M correlation function | V42: function name | W42: rY (or R)= | X42: Genetic gain among (%)= | Y42: Genetic gain within (%)= | Z42: Total genetic gain per cycle (%)= | AA42: Gain/(cost per grandparent)= | AB42: Gain/time= | AC42: Group merit/time= | AD42: Diversity loss per cycle | AE42: Weight for group coancestry= | AF42: Rotation age= | AG42: BP size | AH42: Number of founders

Sheet Wilhelm08
A1: Breeding Cycle Analyser Wilhelm: Deterministic simulator for gain prediction for a program with balance among grandparents, but between and within family selection. | R1: Meaning of cell font and colour:
B2: TroubleSolver | C2: Get started | D2: Aim | E2: How to run | F2: Swedish pine plans | G2: Breeding plan | H2: Assumptions | I2: Initial settings | J2: Results | K2: Costs and time | L2: Correlation | M2: Literature | N2: About | Q2: 081208, last edit Darius | R2: Input | S2: Results
A4: Genetic parameters | F4: Diversity loss, rotation, BP size
B5: Variance components | C5: Standard deviations | D5: ruCVAm= | E5: 11 | F5: Diversity loss per cycle | G5: 0.01
A6: sA2= | B6: 1 | C6: =SQRT(B6) -> 1 | D6: sP2=sA2+sD2+sE2= | E6: =B6+B7+B8 -> 8 | F6: Weight for group coancestry= | G6: 0
A7: sD2= | B7: 0.25 | C7: =SQRT(B7) -> 0.5 | D7: h2= | E7: =B6/E6 -> 0.125 | F7: Rotation age= | G7: 70
A8: sE2= | B8: 6.75 | C8: =SQRT(B8) -> 2.598076211 | D8: H2= | E8: =(B6+B7)/E6 -> 0.15625 | F8: BP size | G8: =D17*G9 -> 300
F9: Number of grandparents | G9: 50
C10: Constraint: annual budget per grandparent | D10: 50
C11: ANNUAL budget for the whole population | D11: =G9*D10 -> 2500
C12: Total budget for a cycle and whole population | D12: =D11*D28 -> 50000
C13: Total budget per cycle and grandparent | D13: =D10*D28 -> 1000
C14: plants in field trials | D14: =G9*D20*D17/2 -> 30000
B16: Optimization box | C16: Parameters | D16: Values | E16: number per fam with SPM
C17: Parents selected per grandparent (PGP) = | D17: 6 | E17: =D17*2 -> 12
C18: Proportion of plants in tests which become parents | D18: =G8/D14 -> 0.01
C19: Selection intensity AMONG = | D19: =SelBurr(2,(D17*2)) -> 1.370824051
C20: Offspring family size (m) = | D20: =4*($D$13-D22)/(D17*2)-2*$D$24 -> 200 | F20: Facilititate analyses with Macros
C21: Selection intensity WITHIN = | D21: =SelBurr((D17*2),D20) -> 1.965753355
C22: Fixed cost (Cfixed)= | D22: 100
C23: Cost per test plant (Cm)= | D23: 1
C24: Cost per parent (Cp)= | D24: 50
C25: Total cost per cycle and grandparent = | D25: =D22+(D17*2*(2*D24+D20))/4 -> 1000
C26: Time not used for testing = | D26: 5
C27: Testing time= | D27: 15
C28: Cycle duration= | D28: =D26+D27 -> 20
C29: rf | D29: =(0.25*(1+1/$D$20)*SQRT($B$6)*(SQRT(1-1/($D$17*2)*$B$6)))/(SQRT(0.25*$B$6*(1+1/$D$20)+0.25*$B$7+(0.75*$B$7+$B$8)/$D$20)) -> 0.4075203921
C30: rw | D30: =(0.5*(1-1/$D$20)*$B$6)/(SQRT((0.5*$B$6+0.75*$B$7)*(1-1/$D$20)+$B$8)) -> 0.1824651721
C31: J-M correlation function | D31: 6
C32: function name | D32: =rname(D31) -> Jansson 2003 south&mid Sw
C33: rjm = | D33: =rr(D31,D27/$G$7) -> 0.5455687129
C34: Genetic gain among (%)= | D34: =$D$33*$D$19*$D$29*E5 -> 3.35253409
C35: Genetic gain within (%)= | D35: =$D$33*$D$21*$D$30*E5 -> 2.152539593
A36: Result | C36: Total genetic gain per cycle (%)= | D36: =D35+D34 -> 5.505073683
C37: Gain/(cost per grandparent)= | D37: =D36/D13 -> 0.005505073683
C38: Gain/time= | D38: =D36/D28 -> 0.2752536842
C39: Group merit/time= | D39: =(D36-G5*G6)/D28 -> 0.2752536842
A42: The below area is for copying the results
A43: Constraint: annual budget per grandparent | B43: ANNUAL budget for the whole population | C43: Total budget for a cycle and whole population | D43: Total budget per cycle and grandparent | E43: plants in field trials | G43: Parameters | H43: Candidate parents selected per grandparent (p) = | I43: Selection intensity AMONG = | J43: Offspring family size (m) = | K43: Selection intensity WITHIN = | L43: Initiation cost (CIN)= | M43: Cost per test plant (Cm)= | N43: Cost per parent (Cp)= | O43: Total cost per cycle and grandparent = | P43: Time not used for testing = | Q43: Testing time= | R43: Cycle duration= | S43: ramong | T43: rwithin | U43: J-M correlation function | V43: function name | W43: rjm = | X43: Genetic gain among (%)= | Y43: Genetic gain within (%)= | Z43: Total genetic gain per cycle (%)= | AA43: Gain/(cost per grandparent)= | AB43: Gain/time= | AC43: Group merit/time= | AD43: Diversity loss per cycle | AE43: Weight for group coancestry= | AF43: Rotation age= | AG43: BP size | AH43: Number of grandparents

Sheet J-M
A1: Comparison of functions for Juvenile-Mature genetic correlations
A2: Try different J-M genetic correlation functions. Use the one you believe best fit your situation
A3: How to use | B3: Aim | C3: Advice | D3: Acknowledgements | F3: This sheet was created by Darius Danusevicius and last edited by Dag Lindgren 2008-07-08
A7: Function | B7: rj-m
A8: Lambeth (1980) | B8: =rg0(B13) -> 0.8065106684
A9: Lambeth & Dill (2001) | B9: =_rg1(B13) -> 0.9729156046
A10: Gwaze et al (2000) | B10: =_rg2(B13) -> 0.8809733562
A11: Jansson et al (2003) south&middle Sw | B11: =_rg6(B13) -> 0.7955215817
A12: Custom | B12: =_rg3(B13) -> 
A13: Choose Q= | B13: 0.5
A16: Custom design box.
A17: Q | B17: rj-m
A18: 0 | B18: 0.1
A19: 0.1 | B19: 0.4
A20: 0.5 | B20: 0.85
A21: 1 | B21: 1
A28: Box for plot (illustrates the difference between the functions)
A29: Ratio selection | B29: J-M correlation coefficient (rj-m)
A30: over rotation age (Q) | B30: Lambeth (1980) | C30: Lambeth & Dill (2001) | D30: Gwaze et al (2000) | E30: Jansson et al (2003)s | F30: Jansson et al (2003)m | G30: Jansson et al (2003)S&M | H30: Custom function
A31: 0 | B31: =rg0(A31) -> 0 | C31: =_rg1(A31) -> 0 | D31: =_rg2($A31) -> 0 | E31: =_rg4($A31) -> 0 | F31: =_rg5($A31) -> 0 | G31: =_rg6($A31) -> 0 | H31: =_rg3(A31) -> 
A32: 0.1 | B32: 0.3108037914 | C32: 0.5004139852 | D32: 0.534944205 | E32: 0.5003390348 | F32: 0.02830909076 | G32: =_rg6($A32) -> 0.3207373976
A33: 0.2 | B33: 0.524293123 | C33: 0.7661515414 | D33: 0.6839708488 | E33: 0.650751973 | F33: 0.320817201 | G33: =_rg6($A33) -> 0.5252158158
A34: 0.3 | B34: 0.6491763763 | C34: 0.8779440497 | D34: 0.7711458471 | E34: 0.7387379015 | F34: 0.4919234766 | G34: 0.6448280227
A35: 0.4 | B35: 0.7377824546 | C35: 0.9377203069 | D35: 0.8329974926 | E35: 0.8011649112 | F35: 0.6133253111 | G35: 0.7296942341
A36: 0.5 | B36: 0.8065106684 | C36: 0.9729156046 | D36: 0.8809733562 | E36: 0.8495870618 | F36: 0.7074918898 | G36: 0.7955215817
A37: 0.6 | B37: 0.8626657079 | C37: 0.9944276038 | D37: 0.9201724909 | E37: 0.8891508396 | F37: 0.7844315868 | G37: 0.849306441
A38: 0.7 | B38: 0.9101441173 | C38: 1 | D38: 0.9533148871 | E38: 0.9226015372 | F38: 0.8494831737 | G38: 0.8947808915
A39: 0.8 | B39: 0.9512717862 | C39: 1 | D39: 0.9820241365 | E39: 0.9515778494 | F39: 0.9058334213 | G39: 0.9341726524
A40: 0.9 | B40: 0.9875489612 | C40: 1 | D40: 1 | E40: 0.9771367681 | F40: 0.9555378624 | G40: 0.9689186479
A41: 1 | B41: 1 | C41: 1 | D41: 1 | E41: 1 | F41: 1 | G41: 1
